bitfinex-derivatives/quotes_SOLF0:USTF0_20241011
["timestamp","ask_amount","ask_price","bid_price","bid_amount"]
[1728668244444,16.49,146.17,146.1,520.35208]
[1728668244965,3.422,146.14,146.1,520.35208]
[1728668246261,16.49,146.15,146.1,520.35208]
[1728668246757,3.4225,146.11,146.1,520.35208]
[1728668252049,3.4225,146.11,146.1,422.83208]
[1728668252248,19.9125,146.11,146.1,389.03208]
[1728668252455,3.4225,146.11,146.1,389.03208]
[1728668252856,19.9125,146.11,146.1,389.03208]
[1728668253859,3.4225,146.11,146.1,389.03208]
[1728668254252,36.4025,146.11,146.1,385.00088]
[1728668254453,3.4225,146.11,146.1,385.00088]
[1728668254662,36.4025,146.11,146.1,385.00088]
[1728668254863,9.8425,146.11,146.1,385.00088]
[1728668255060,26.3325,146.11,146.1,287.48088]
[1728668256159,9.8425,146.11,146.1,287.48088]
[1728668256858,3.4225,146.11,146.1,287.48088]
[1728668258564,22.91,146.13,146.1,287.48088]
[1728668258958,3.4225,146.12,146.1,287.48088]
[1728668259164,22.91,146.13,146.1,287.48088]
[1728668259771,3.4225,146.11,146.1,287.48088]
[1728668268467,13.9325,146.11,146.1,287.48088]
[1728668270366,3.4225,146.11,146.1,287.48088]
[1728668270569,10.51,146.12,146.1,287.48088]
[1728668271176,6.42,146.13,146.1,287.48088]
[1728668271368,10.51,146.11,146.1,287.48088]
[1728668271973,13.9325,146.11,146.1,287.48088]
[1728668273066,17.37092287,146.11,146.1,185.16088]
[1728668273470,6.86092287,146.11,146.1,185.16088]
[1728668273670,17.37092287,146.11,146.1,185.16088]
[1728668274067,13.9325,146.11,146.1,185.16088]
[1728668274471,335.0,146.12,146.1,185.16088]
[1728668275179,3.4225,146.11,146.1,185.16088]
[1728668279574,335.0,146.12,146.1,185.16088]
[1728668279878,3.4224,146.12,146.1,185.16088]
[1728668280880,3.4223,146.12,146.1,185.16088]
[1728668281279,6.16,146.13,146.1,185.16088]
[1728668282182,3.4223,146.12,146.1,185.16088]
[1728668283382,9.5823,146.13,146.1,185.16088]
[1728668283581,3.4223,146.13,146.1,185.16088]
[1728668283773,6.16,146.14,146.11,1.3723]
[1728668283981,3.4215,146.16,146.11,2.7456]
[1728668284181,16.44,146.18,146.11,2.7456]
[1728668284383,6.16,146.18,146.11,2.7456]
[1728668285186,6.16,146.18,146.11,19.1856]
[1728668286484,3.4215,146.16,146.11,19.1856]
[1728668286985,3.4217,146.15,146.11,19.1856]
[1728668287188,6.16,146.18,146.11,19.1856]
[1728668287391,3.4215,146.16,146.13,16.44]
[1728668287580,6.16,146.18,146.13,16.44]
[1728668287885,3.4215,146.16,146.13,16.44]
[1728668288182,6.28502,146.21,146.15,16.44]
[1728668288382,0.12502,146.21,146.17,16.44]
[1728668288582,0.12502,146.21,146.18,2.7263]
[1728668288786,3.4204,146.2,146.18,2.7263]
[1728668288985,0.12502,146.21,146.18,2.7263]
[1728668289889,3.54532,146.21,146.18,2.7263]
[1728668290286,3.4207,146.19,146.18,2.7263]
[1728668291087,25.96098665,146.2,146.1,185.16088]
[1728668291387,3.4222,146.13,146.11,1.3868]
[1728668291584,3.42991208,146.2,146.12,16.44]
[1728668291789,0.12502,146.21,146.12,16.44]
[1728668291989,3.57306528,146.21,146.12,16.44]
[1728668292582,3.4215,146.16,146.12,16.44]
[1728668292983,16.44,146.2,146.11,1.3868]
[1728668293487,16.44,146.18,146.11,2.7768]
[1728668293690,3.4223,146.12,146.11,2.7768]
[1728668295891,3.4223,146.12,146.11,1.3868]
[1728668297591,1.0,146.19,146.11,1.3868]
[1728668297790,3.4223,146.12,146.11,1.3868]
[1728668301398,16.44,146.16,146.11,1.3868]
[1728668301599,6.14,146.17,146.11,1.3868]
[1728668302099,3.4217,146.15,146.11,1.3868]
[1728668302398,22.58,146.17,146.11,1.3868]
[1728668302990,3.422,146.14,146.11,1.3868]
[1728668303195,22.58,146.17,146.11,1.3868]
[1728668303395,6.14,146.17,146.11,1.3868]
[1728668303596,3.4222,146.13,146.11,1.3868]
[1728668305402,22.66,146.18,146.11,1.3868]
[1728668305590,6.22,146.18,146.11,1.3868]
[1728668305797,3.4215,146.16,146.11,4.8093]
[1728668306000,3.4215,146.16,146.11,1.3868]
[1728668306300,3.4215,146.16,146.11,4.8093]
[1728668306689,3.4215,146.16,146.11,11.0293]
[1728668307502,3.4216,146.15,146.11,11.0293]
[1728668308199,17.44,146.19,146.11,7.6068]
[1728668308404,1.0,146.19,146.11,7.6068]
[1728668308609,16.44,146.17,146.11,7.6068]
[1728668309496,3.422,146.14,146.11,7.6068]
[1728668310207,3.4218,146.15,146.11,7.6068]
[1728668310503,22.66,146.18,146.11,7.6068]
[1728668311092,3.4219,146.14,146.11,7.6068]
[1728668311298,22.66,146.18,146.11,7.6068]
[1728668311999,22.66,146.18,146.11,1.3868]
[1728668312198,16.44,146.17,146.11,1.3868]
[1728668312403,6.22,146.18,146.11,1.3868]
[1728668312704,22.66,146.18,146.11,1.3868]
[1728668312905,3.422,146.14,146.11,1.3868]
[1728668313304,3.4223,146.12,146.11,1.3868]
[1728668315804,1.0,146.19,146.11,1.3868]
[1728668316003,6.22,146.18,146.11,1.3868]
[1728668316307,6.22,146.18,146.12,3.4223]
[1728668316507,3.4215,146.16,146.12,3.4223]
[1728668317804,16.44,146.17,146.11,1.3868]
[1728668318506,3.4222,146.13,146.11,1.3868]
[1728668318701,16.44,146.17,146.11,1.3868]
[1728668319410,6.22,146.16,146.11,1.3868]
[1728668319607,16.44,146.14,146.11,1.3868]
[1728668319809,3.4223,146.12,146.11,1.3868]
[1728668320910,1.0,146.19,146.11,1.3868]
[1728668321101,7.22,146.19,146.11,1.3868]
[1728668321302,16.44,146.18,146.11,1.3868]
[1728668321504,3.4214,146.16,146.11,1.3868]
[1728668321715,7.22,146.19,146.11,17.8268]
[1728668323108,3.4213,146.17,146.12,3.4222]
[1728668324016,3.4214,146.16,146.12,3.4222]
[1728668325019,16.44,146.15,146.11,1.3868]
[1728668325414,16.44,146.17,146.11,1.3868]
[1728668325915,3.4218,146.15,146.11,4.8093]
[1728668326624,16.44,146.17,146.11,1.3868]
[1728668326915,16.44,146.15,146.11,1.3868]
[1728668327521,3.4223,146.13,146.11,1.3868]
[1728668328727,3.4223,146.12,146.11,1.3868]
[1728668329314,7.22,146.19,146.11,1.3868]
[1728668329521,16.44,146.17,146.11,1.3868]
[1728668330021,3.422,146.14,146.11,1.3868]
[1728668330318,16.44,146.17,146.11,1.3868]
[1728668330621,3.4223,146.12,146.11,1.3868]
[1728668332121,3.4219,146.14,146.11,1.3868]
[1728668332319,16.44,146.17,146.11,1.3868]
[1728668332525,16.44,146.15,146.11,1.3868]
[1728668333516,7.22,146.19,146.11,1.3868]
[1728668333718,3.4219,146.14,146.11,1.3868]
[1728668334011,16.44,146.15,146.11,1.3868]
[1728668334524,3.4223,146.13,146.11,1.3868]
[1728668335124,3.4223,146.12,146.11,1.3868]
[1728668335822,3.4223,146.12,146.1,185.16088]
[1728668335823,16.44,146.15,146.1,185.16088]
[1728668336022,3.4225,146.11,146.1,185.16088]
[1728668337324,1.0,146.19,146.1,185.16088]
[1728668337520,17.44,146.19,146.11,1.3042]
[1728668338225,6.04,146.18,146.11,1.3042]
[1728668338424,16.44,146.17,146.11,1.3042]
[1728668339531,6.04,146.18,146.11,1.3042]
[1728668339731,16.44,146.12,146.1,185.16088]
[1728668340228,3.4225,146.11,146.1,185.16088]
[1728668342330,6.04,146.13,146.1,185.16088]
[1728668342637,9.4622,146.13,146.1,185.16088]
[1728668342933,6.04,146.13,146.1,185.16088]
[1728668343131,4.7683,146.14,146.1,185.16088]
[1728668343324,1.3464,146.14,146.1,185.16088]
[1728668343531,3.4224,146.12,146.1,185.16088]
[1728668343832,1.3464,146.14,146.1,185.16088]
[1728668344033,3.4219,146.14,146.1,185.16088]
[1728668346632,3.4221,146.13,146.1,185.16088]
[1728668346834,16.44,146.14,146.1,185.16088]
[1728668347430,3.4225,146.11,146.1,185.16088]
[1728668350131,9.4625,146.11,146.1,185.16088]
[1728668351435,9.4625,146.11,146.1,87.64088]
[1728668351634,25.9025,146.11,146.1,87.64088]
[1728668352637,25.9025,146.11,146.1,83.34968]
[1728668352834,9.4625,146.11,146.1,81.20418]
[1728668353030,25.9025,146.11,146.1,47.40418]
[1728668354041,22.48,146.11,146.03,0.12502]
[1728668354435,3.4231,146.08,146.03,3.54902]
[1728668355440,22.48,146.11,146.03,0.12502]
[1728668355441,3.4233,146.07,146.03,0.12502]
[1728668355638,22.48,146.11,146.03,0.12502]
[1728668356533,6.04,146.11,146.03,0.12502]
[1728668356743,16.44,146.1,146.03,3.54902]
[1728668356949,16.44,146.1,146.03,0.12502]
[1728668357149,16.44,146.08,146.03,0.12502]
[1728668357341,6.04,146.11,146.03,0.12502]
[1728668357543,22.48,146.11,146.03,16.56502]
[1728668358242,22.48,146.11,146.03,19.98892]
[1728668358243,3.4229,146.09,146.03,19.98892]
[1728668358440,22.48,146.11,146.03,19.98892]
[1728668359047,22.48,146.11,146.03,16.56502]
[1728668359350,3.4228,146.09,146.04,4.7155]
[1728668360052,3.4235,146.06,146.04,1.2917]
[1728668360256,3.4235,146.06,146.03,0.12502]
[1728668361548,16.44,146.08,146.03,0.12502]
[1728668361749,16.44,146.1,146.03,0.12502]
[1728668361956,6.04,146.11,146.05,3.4234]
[1728668362254,3.4228,146.09,146.05,3.4234]
[1728668362847,6.04,146.11,146.03,22.50502]
[1728668363051,16.44,146.12,146.03,22.50502]
[1728668363854,3.4224,146.11,146.05,16.44]
[1728668364053,22.38,146.14,146.06,1.3021]
[1728668364253,22.38,146.14,146.06,4.7254]
[1728668365045,3.4226,146.1,146.06,4.7254]
[1728668366053,3.4231,146.08,146.03,0.12502]
[1728668366250,16.44,146.09,146.03,0.12502]
[1728668367249,5.94,146.1,146.03,0.12502]
[1728668367250,16.44,146.07,146.03,0.12502]
[1728668368757,3.4238,146.05,146.03,0.12502]
[1728668369554,16.44,146.07,146.03,0.12502]
[1728668369761,3.4238,146.04,146.03,0.12502]
[1728668377363,3.4252,145.98,145.97,0.12502]
[1728668377554,5.94,146.02,145.97,0.12502]
[1728668377752,16.44,146.01,145.97,0.12502]
[1728668377956,3.4252,145.98,145.97,0.12502]
[1728668379664,5.94,146.02,145.97,0.12502]
[1728668379864,22.38,146.02,145.97,0.12502]
[1728668380264,5.94,146.02,145.97,0.12502]
[1728668380565,16.44,146.01,145.97,0.12502]
[1728668380860,3.4252,145.98,145.97,0.12502]
[1728668386870,5.94,146.02,145.85,0.12502]
[1728668386871,12.12502,145.97,145.85,0.12502]
[1728668387164,16.44,145.95,145.86,3.428]
[1728668387369,16.44,145.95,145.87,1.4299]
[1728668387370,3.4268,145.92,145.87,1.4299]
[1728668387562,3.4268,145.92,145.87,2.7541]
[1728668387757,19.91930372,145.95,145.87,2.7541]
[1728668388062,16.44,145.89,145.87,2.7541]
[1728668388264,16.44,145.89,145.85,0.12502]
[1728668388462,3.4281,145.86,145.85,0.12502]
[1728668388973,9.3879,145.87,145.85,0.12502]
[1728668389267,5.96,145.87,145.85,0.12502]
[1728668389473,16.44,145.86,145.85,0.12502]
[1728668389663,19.8681,145.86,145.85,0.12502]
[1728668389965,16.44,145.86,145.79,1.51222]
[1728668390166,16.44,145.84,145.79,0.12502]
[1728668390965,19.8692,145.82,145.79,0.12502]
[1728668391266,16.44,145.82,145.79,0.12502]
[1728668391572,3.4294,145.81,145.79,0.12502]
[1728668391963,16.44,145.82,145.79,0.12502]
[1728668392272,12.0,145.73,145.43,6.849]
[1728668392464,12.0,145.73,145.3,630.50951337]
[1728668392465,16.44,145.44,145.11,10.68]
[1728668392660,11.1,145.43,145.2,1.23036803]
[1728668392869,27.399,145.38,145.2,28.06]
[1728668393169,19.87427319,145.38,145.26,16.44]
[1728668393360,16.44,145.38,145.26,16.44]
[1728668393670,16.44,145.39,145.28,16.44]
[1728668393972,3.4404,145.34,145.27,11.62]
[1728668394465,1.0,145.37,145.31,42.95]
[1728668396862,43.95,145.37,145.27,11.62]
[1728668397064,1.0,145.37,145.28,42.95]
[1728668397265,1.0,145.37,145.29,12.1]
[1728668397468,1.0,145.37,145.31,42.95]
[1728668398267,1.0,145.37,145.29,55.05]
[1728668398470,1.0,145.37,145.3,12.1]
[1728668398873,1.0,145.37,145.28,74.12]
[1728668399069,1.0,145.37,145.29,55.05]
[1728668399470,1.0,145.37,145.32,42.95]
[1728668399773,7.0,145.42,145.32,42.95]
[1728668399973,7.0,145.43,145.33,3.4405]
[1728668400573,7.0,145.43,145.34,46.3902]
[1728668400775,7.0,145.43,145.35,12.12]
[1728668401074,7.0,145.42,145.36,12.12]
[1728668401370,20.55,145.36,145.07,43.07502]
[1728668401570,74.22,145.41,145.07,0.12502]
[1728668401571,42.95,145.2,145.07,0.12502]
[1728668401776,42.95,145.17,145.09,12.6]
[1728668401973,42.95,145.14,145.09,12.6]
[1728668402576,3.40042664,145.26,145.09,12.6]
[1728668402774,42.95,145.18,145.07,3.57172]
[1728668402975,3.45406299,145.26,145.07,0.12502]
[1728668403176,42.95,145.17,145.07,0.12502]
[1728668403378,42.95,145.17,145.09,12.6]
[1728668404068,42.95,145.17,145.07,0.12502]
[1728668404269,46.47022882,145.26,145.09,12.62]
[1728668404270,42.95,145.15,145.09,12.62]
[1728668404579,42.95,145.15,145.08,12.62]
[1728668404781,42.95,145.15,145.07,0.12502]
[1728668404976,42.95,145.15,145.09,12.62]
[1728668407181,42.95,145.15,145.07,0.12502]
[1728668407584,42.95,145.15,145.1,12.62]
[1728668408187,3.36079134,145.2,145.11,12.62]
[1728668408373,42.95,145.18,145.11,12.62]
[1728668408577,42.95,145.18,145.07,0.12502]
[1728668408779,42.95,145.18,145.11,12.62]
[1728668409678,42.95,145.18,145.11,5.6794869]
[1728668410476,42.95,145.18,145.08,3.4465]
[1728668410677,0.12502,145.19,145.11,12.64]
[1728668410881,43.07502,145.19,145.11,12.64]
[1728668411081,43.07502,145.19,145.12,12.64]
[1728668411288,43.07502,145.19,145.08,3.4463]
[1728668411588,42.95,145.17,145.09,12.64]
[1728668411981,42.95,145.18,145.09,12.64]
[1728668412787,42.95,145.18,145.09,16.086]
[1728668413991,0.12502,145.19,145.09,16.086]
[1728668414290,42.95,145.18,145.09,16.086]
[1728668414688,42.95,145.18,145.09,12.64]
[1728668415282,42.95,145.18,145.09,16.0861]
[1728668416186,42.95,145.18,145.09,12.64]
[1728668417093,42.95,145.18,145.1,3.446]
[1728668417394,0.12502,145.19,145.09,12.64]
[1728668417600,0.12502,145.19,145.11,3.4458]
[1728668418684,0.12502,145.19,145.1,3.446]
[1728668420190,43.07502,145.19,145.12,3.4455]
[1728668420492,43.07502,145.19,145.09,12.64]
[1728668420694,43.07502,145.19,145.1,3.446]
[1728668421293,43.07502,145.19,145.11,3.4458]
[1728668421595,43.07502,145.19,145.09,12.64]
[1728668421989,43.07502,145.19,145.1,3.4458]
[1728668422393,43.07502,145.19,145.09,12.64]
[1728668422596,0.12502,145.19,145.09,12.05984581]
[1728668423000,0.12502,145.19,145.12,3.4455]
[1728668423300,1.0,145.18,145.12,3.4455]
[1728668424393,1.0,145.18,145.09,12.05984581]
[1728668424394,1.0,145.18,145.11,3.4457]
[1728668424593,1.0,145.18,145.09,12.05984581]
[1728668425283,1.0,145.18,145.12,3.4455]
[1728668425995,43.95,145.18,145.08,1.4334]
[1728668426185,43.95,145.18,145.09,11.58]
[1728668426792,43.95,145.18,145.11,3.4456]
[1728668427996,42.95,145.15,145.11,3.4456]
[1728668428393,26.45,145.16,145.11,3.4456]
[1728668428802,26.45,145.16,145.12,3.4455]
[1728668429495,1.0,145.18,145.12,3.4455]
[1728668429799,26.45,145.17,145.12,3.4455]
[1728668431203,1.0,145.18,145.12,3.4455]
[1728668431407,27.45,145.18,145.12,3.4455]
[1728668432200,1.0,145.18,145.09,11.58]
[1728668432396,1.0,145.18,145.13,3.4451]
[1728668432603,1.0,145.18,145.13,2.92296123]
[1728668433103,1.0,145.18,145.09,11.58]
[1728668433305,1.0,145.18,145.12,3.4455]
[1728668433602,1.0,145.18,145.12,2.96576386]
[1728668434005,1.0,145.18,145.09,11.58]
[1728668434006,1.0,145.18,145.13,3.4453]
[1728668434603,26.45,145.17,145.13,3.4453]
[1728668435698,26.45,145.17,145.11,3.4456]
[1728668435900,26.45,145.17,145.09,11.58]
[1728668436300,26.45,145.17,145.12,3.4454]
[1728668436607,26.45,145.17,145.09,11.58]
[1728668436807,26.45,145.17,145.12,3.4454]
[1728668437202,26.45,145.17,145.09,11.58]
[1728668437404,26.45,145.17,145.13,3.4453]
[1728668437609,1.0,145.18,145.13,3.4453]
[1728668437905,27.45,145.18,145.11,3.4456]
[1728668438108,27.45,145.18,145.09,11.58]
[1728668438419,27.45,145.18,145.12,3.4455]
[1728668438822,27.45,145.18,145.09,11.58]
[1728668439009,27.45,145.18,145.11,3.4457]
[1728668439711,27.45,145.18,145.12,3.4455]
[1728668439922,27.45,145.18,145.13,11.14]
[1728668440311,1.0,145.18,145.13,11.14]
[1728668442411,1.0,145.18,145.13,10.67007511]
[1728668443118,1.0,145.18,145.13,14.11537511]
[1728668444417,1.0,145.18,145.13,10.67007511]
[1728668446013,1.0,145.18,145.14,10.62]
[1728668448219,26.45,145.15,145.07,0.12502]
[1728668448519,26.45,145.08,145.02,13.369]
[1728668448718,0.12502,145.13,145.05,3.447]
[1728668448925,26.45,145.12,145.02,13.369]
[1728668449327,26.45,145.12,145.04,3.4474]
[1728668449532,26.45,145.12,145.04,10.62]
[1728668449724,29.83547409,145.12,145.04,10.62]
[1728668450119,3.38547409,145.12,145.04,10.62]
[1728668450419,26.45,145.11,145.04,14.0674]
[1728668450617,26.45,145.11,145.04,10.62]
[1728668451024,27.45,145.11,145.04,10.62]
[1728668451224,30.84744415,145.11,145.05,3.4471]
[1728668451627,4.39744415,145.11,145.04,10.62]
[1728668451827,4.39744415,145.11,145.08,3.4464]
[1728668452020,4.39744415,145.11,145.04,10.62]
[1728668452630,1.0,145.11,145.04,10.62]
[1728668453925,1.0,145.11,145.09,3.4461]
[1728668457133,1.0,145.11,145.09,3.4461]
[1728668457334,1.0,145.11,145.09,13.6061]
[1728668458027,1.0,145.11,145.09,10.16]
[1728668458228,0.12502,145.13,145.1,3.446]
[1728668458430,0.12502,145.13,145.09,10.16]
[1728668459530,0.12502,145.13,145.11,3.4458]
[1728668461340,0.12502,145.13,145.09,10.16]
[1728668461629,0.12502,145.13,145.1,3.446]
[1728668462535,0.12502,145.13,145.1,3.06536084]
[1728668463433,0.12502,145.13,145.11,2.72597921]
[1728668467034,0.12502,145.13,145.05,26.45]
[1728668467241,0.12502,145.13,145.07,3.4467]
[1728668467440,0.12502,145.13,145.06,9.74]
[1728668467633,1.0,145.12,145.06,9.74]
[1728668468235,1.0,145.12,145.11,3.4458]
[1728668468435,0.12502,145.13,145.09,16.55]
[1728668468934,0.12502,145.13,145.11,3.4456]
[1728668469230,0.12502,145.13,145.11,9.74]
[1728668471538,0.12502,145.13,145.11,13.1857]
[1728668471739,0.12502,145.13,145.11,9.74]
[1728668472244,0.12502,145.13,145.12,3.4455]
[1728668473337,0.12502,145.13,145.11,9.74]
[1728668473840,0.12502,145.13,145.1,3.4458]
[1728668474035,0.12502,145.13,145.09,9.74]
[1728668474436,0.12502,145.13,145.11,3.4457]
[1728668475030,0.12502,145.13,145.09,9.74]
[1728668475235,0.12502,145.13,145.11,3.4456]
[1728668475546,0.12502,145.13,145.09,9.74]
[1728668475748,0.12502,145.13,145.12,3.4455]
[1728668476642,3.39375559,145.15,145.1,3.4458]
[1728668476854,0.12502,145.19,145.09,26.29]
[1728668477253,3.59318427,145.19,145.12,3.4454]
[1728668477459,1.0,145.18,145.09,26.29]
[1728668477647,4.49607221,145.18,145.09,26.29]
[1728668478348,4.49607221,145.18,145.13,3.4453]
[1728668483339,4.49607221,145.18,145.12,9.28]
[1728668483340,16.55,145.17,145.12,9.28]
[1728668484246,4.49607221,145.18,145.12,9.28]
[1728668484952,4.49607221,145.18,145.13,3.4451]
[1728668484953,1.0,145.18,145.13,3.4451]
[1728668485252,20.92478617,145.18,145.13,3.4451]
[1728668485955,20.92478617,145.18,145.12,9.28]
[1728668486855,4.37478617,145.18,145.12,9.28]
[1728668487057,4.37478617,145.18,145.13,3.4452]
[1728668487255,1.0,145.18,145.13,3.4452]
[1728668487552,1.0,145.18,145.12,9.28]
[1728668487757,21.00713891,145.18,145.12,9.28]
[1728668488054,17.55,145.18,145.12,9.28]
[1728668488252,17.55,145.18,145.13,3.4453]
[1728668488458,20.94753307,145.18,145.13,3.4453]
[1728668492853,20.94753307,145.18,145.12,9.28]
[1728668493058,20.94753307,145.18,145.14,3.4451]
[1728668493668,4.39753307,145.18,145.15,3.4448]
[1728668493857,4.39753307,145.18,145.12,9.28]
[1728668494560,4.39753307,145.18,145.14,3.4449]
[1728668494857,1.0,145.18,145.14,3.4449]
[1728668495253,4.43416247,145.18,145.14,3.4449]
[1728668496459,20.98416247,145.18,145.12,3.4455]
[1728668496763,20.98416247,145.18,145.11,10.2291]
[1728668497456,20.98416247,145.18,145.13,3.4451]
[1728668497963,20.98416247,145.18,145.11,10.2291]
[1728668498162,20.98416247,145.18,145.11,1.3891]
[1728668498461,20.98416247,145.18,145.13,3.4452]
[1728668499464,4.43416247,145.18,145.12,8.84]
[1728668499951,0.12502,145.25,145.12,8.84]
[1728668500153,0.12502,145.25,145.13,0.12502]
[1728668500357,10.50050235,145.25,145.13,0.12502]
[1728668500555,7.12502,145.25,145.15,3.4448]
[1728668500759,16.55,145.23,145.15,13.5648]
[1728668500966,16.55,145.23,145.13,16.67502]
[1728668501161,16.55,145.23,145.15,10.12]
[1728668501462,1.0,145.22,145.15,10.12]
[1728668501663,1.0,145.22,145.14,3.445]
[1728668501855,1.0,145.22,145.15,10.12]
[1728668502263,4.46850882,145.22,145.15,10.12]
[1728668503262,21.01850882,145.22,145.15,10.12]
[1728668504358,21.01850882,145.22,145.15,13.5648]
[1728668504761,16.55,145.16,145.13,0.12502]
[1728668504968,3.40210801,145.16,145.13,0.12502]
[1728668505162,2.2731,145.21,145.13,0.12502]
[1728668505163,16.55,145.2,145.13,0.12502]
[1728668505561,2.2731,145.21,145.13,10.24502]
[1728668505562,16.55,145.18,145.13,10.24502]
[1728668506265,16.55,145.18,145.15,3.4447]
[1728668506459,1.0,145.17,145.15,3.4447]
[1728668507264,1.0,145.17,145.14,3.4451]
[1728668512662,8.0,145.17,145.14,3.445]
[1728668513082,8.0,145.17,145.13,0.12502]
[1728668513283,8.0,145.17,145.15,3.4447]
[1728668513976,8.0,145.17,145.13,0.12502]
[1728668514370,10.59,145.16,145.14,3.4449]
[1728668514569,7.0,145.15,145.14,3.4449]
[1728668515373,17.59,145.15,145.14,3.4449]
[1728668516680,17.59,145.15,145.13,0.12502]
[1728668516974,17.59,145.14,145.13,0.12502]
[1728668517880,17.59,145.14,145.13,3.57032]
[1728668518976,7.0,145.14,145.13,3.57032]
[1728668519485,17.59,145.14,145.13,3.57032]
[1728668522583,17.59,145.14,145.13,0.12502]
[1728668522781,3.48115574,145.13,145.07,75.90972]
[1728668523083,10.59,145.12,145.08,9.24]
[1728668523579,10.59,145.12,145.11,3.4456]
[1728668524781,10.59,145.12,145.1,3.4459]
[1728668524987,7.0,145.13,145.07,85.14972]
[1728668525292,10.59,145.12,145.11,3.4458]
[1728668527074,7.0,145.14,145.13,3.4453]
[1728668527278,7.0,145.14,145.07,85.14972]
[1728668527279,7.0,145.14,145.09,9.59]
[1728668527474,7.0,145.14,145.13,3.4453]
[1728668528178,17.59,145.14,145.13,3.4453]
[1728668529889,17.59,145.14,145.12,3.4454]
[1728668530078,17.59,145.13,145.07,305.12788]
[1728668530690,7.0,145.13,145.07,305.12788]
[1728668531081,7.0,145.13,145.07,304.12788]
[1728668531282,7.0,145.13,145.07,303.12788]
[1728668531485,0.12502,145.13,145.12,3.4456]
[1728668531683,0.12502,145.13,145.12,2.4456]
[1728668532192,0.12502,145.13,145.12,1.4456]
[1728668532582,7.12502,145.13,145.12,1.4456]
[1728668533182,7.12502,145.13,145.12,9.24]
[1728668533387,1.0,145.17,145.12,9.24]
[1728668533583,10.59,145.16,145.13,3.4453]
[1728668534089,10.59,145.16,145.12,9.24]
[1728668534290,3.48173673,145.15,145.12,9.24]
[1728668534481,11.59,145.17,145.12,9.24]
[1728668534688,11.59,145.17,145.14,3.445]
[1728668534994,14.97741325,145.17,145.14,3.445]
[1728668535189,4.38741325,145.17,145.13,3.4452]
[1728668535490,10.59,145.15,145.12,9.24]
[1728668535691,3.43840361,145.14,145.12,9.24]
[1728668535889,3.43840361,145.14,145.12,3.4454]
[1728668536192,3.43840361,145.14,145.09,9.24]
[1728668536392,3.43840361,145.14,145.13,3.4453]
[1728668536692,3.43840361,145.14,145.09,8.24]
[1728668536884,3.43840361,145.14,145.12,3.4454]
[1728668537289,3.43840361,145.14,145.09,8.24]
[1728668537488,3.43840361,145.14,145.13,3.4453]
[1728668538198,3.43840361,145.14,145.09,8.24]
[1728668538793,3.43840361,145.14,145.13,3.4453]
[1728668539589,3.43840361,145.14,145.11,3.4456]